[Event "Titled Tuesday Blitz April 19 Early 2022"]
[White "Visakh N R"]
[Black "Samant Aditya S"]
[WhiteFideId "25012223"]
[BlackFideId "35080580"]
[WhiteElo "2448"]
[BlackElo "1916"]
[Result "1-0"]
[Round "09"]
[TimeControl "180+1"]
[Date "2022.04.19"]
[WhiteClock "0:00:56"]
[BlackClock "0:00:03"]

1. c4 {[%clk 0:02:50]}  e5 {[%clk 0:02:58]} 2. g3 {[%clk 0:02:40]}  Nf6 {[%clk 0:02:56]} 3. Bg2 {[%clk 0:02:40]}  d5 {[%clk 0:02:55]} 4. cxd5 {[%clk 0:02:22]}  Nxd5 {[%clk 0:02:56]} 5. d4 {[%clk 0:02:21]}  Bb4+ {[%clk 0:02:23]} 6. Bd2 {[%clk 0:02:17]}  exd4 {[%clk 0:02:22]} 7. Nf3 {[%clk 0:02:17]}  c5 {[%clk 0:01:42]} 8. O-O {[%clk 0:02:12]}  O-O {[%clk 0:01:38]} 9. Bxb4 {[%clk 0:02:03]}  Nxb4 {[%clk 0:01:39]} 10. Nbd2 {[%clk 0:02:03]}  N8c6 {[%clk 0:01:37]} 11. a3 {[%clk 0:02:01]}  Nd5 {[%clk 0:01:35]} 12. Rc1 {[%clk 0:02:01]}  Qe7 {[%clk 0:01:30]} 13. Nb3 {[%clk 0:02:00]}  b6 {[%clk 0:01:11]} 14. Nfxd4 {[%clk 0:01:52]}  Nxd4 {[%clk 0:01:05]} 15. Nxd4 {[%clk 0:01:51]}  Bb7 {[%clk 0:01:05]} 16. Nf5 {[%clk 0:01:50]}  Qe5 {[%clk 0:00:43]} 17. Bxd5 {[%clk 0:01:43]}  Rad8 {[%clk 0:00:42]} 18. Ne3 {[%clk 0:01:21]}  Bxd5 {[%clk 0:00:36]} 19. Nxd5 {[%clk 0:01:22]}  Rxd5 {[%clk 0:00:35]} 20. Qc2 {[%clk 0:01:20]}  Rfd8 {[%clk 0:00:34]} 21. Rfd1 {[%clk 0:01:07]}  g6 {[%clk 0:00:35]} 22. Rxd5 {[%clk 0:01:06]}  Rxd5 {[%clk 0:00:35]} 23. b4 {[%clk 0:01:06]}  Kg7 {[%clk 0:00:33]} 24. Qc3 {[%clk 0:01:00]}  Qxc3 {[%clk 0:00:17]} 25. Rxc3 {[%clk 0:01:01]}  cxb4 {[%clk 0:00:17]} 26. axb4 {[%clk 0:01:00]}  Rb5 {[%clk 0:00:15]} 27. Rc7 {[%clk 0:01:00]}  a5 {[%clk 0:00:12]} 28. bxa5 {[%clk 0:00:59]}  bxa5 {[%clk 0:00:12]} 29. Ra7 {[%clk 0:01:00]}  h5 {[%clk 0:00:09]} 30. Kg2 {[%clk 0:00:57]}  Rc5 {[%clk 0:00:09]} 31. f4 {[%clk 0:00:57]}  Kf6 {[%clk 0:00:08]} 32. Kf3 {[%clk 0:00:57]}  Rb5 {[%clk 0:00:07]} 33. h3 {[%clk 0:00:57]}  Rb3+ {[%clk 0:00:06]} 34. e3 {[%clk 0:00:57]}  Rb5 {[%clk 0:00:07]} 35. Ra6+ {[%clk 0:00:57]}  Ke7 {[%clk 0:00:07]} 36. Ra7+ {[%clk 0:00:57]}  Ke6 {[%clk 0:00:07]} 37. g4 {[%clk 0:00:57]}  hxg4+ {[%clk 0:00:07]} 38. hxg4 {[%clk 0:00:58]}  Rc5 {[%clk 0:00:07]} 39. Ra6+ {[%clk 0:00:58]}  Ke7 {[%clk 0:00:07]} 40. Ra7+ {[%clk 0:00:58]}  Ke6 {[%clk 0:00:07]} 41. g5 {[%clk 0:00:58]}  Rb5 {[%clk 0:00:07]} 42. Ra6+ {[%clk 0:00:58]}  Ke7 {[%clk 0:00:07]} 43. Ra7+ {[%clk 0:00:58]}  Ke6 {[%clk 0:00:07]} 44. Kg4 {[%clk 0:00:56]}  Rc5 {[%clk 0:00:05]} 45. e4 {[%clk 0:00:56]}  Rb5 {[%clk 0:00:04]} 46. f5+ {[%clk 0:00:55]}  gxf5+ {[%clk 0:00:02]} 47. exf5+ {[%clk 0:00:56]}  Ke5 {[%clk 0:00:01]} 48. Re7+ {[%clk 0:00:55]}  Kd4 {[%clk 0:00:01]} 49. Rxf7 {[%clk 0:00:55]}  a4 {[%clk 0:00:02]} 50. Ra7 {[%clk 0:00:56]}  Rb4 {[%clk 0:00:02]} 51. g6 {[%clk 0:00:56]}  Kc3+ {[%clk 0:00:03]} 52. Kg5 {[%clk 0:00:56]}  Kb2 {[%clk 0:00:04]} 53. g7 {[%clk 0:00:57]}  Rb8 {[%clk 0:00:03]} 54. Rxa4 {[%clk 0:00:56]} 1-0


[Site "https://www.chess.com"]

[Event "Titled Tuesday Blitz April 19 Early 2022"]
[White "Vokhidov, Shamsiddin"]
[Black "Oparin, Grigoriy"]
[WhiteFideId "14204223"]
[BlackFideId "24125890"]
[WhiteElo "2611"]
[BlackElo "2665"]
[Result "0-1"]
[Round "09"]
[TimeControl "180+1"]
[Date "2022.04.19"]
[WhiteClock "0:00:10"]
[BlackClock "0:00:06"]

1. e4 {[%clk 0:03:00]}  e5 {[%clk 0:03:00]} 2. Nf3 {[%clk 0:03:01]}  Nc6 {[%clk 0:03:01]} 3. Bb5 {[%clk 0:03:01]}  Nf6 {[%clk 0:03:01]} 4. d3 {[%clk 0:03:02]}  d6 {[%clk 0:03:01]} 5. O-O {[%clk 0:03:02]}  Be7 {[%clk 0:03:00]} 6. d4 {[%clk 0:02:59]}  O-O {[%clk 0:02:58]} 7. Bxc6 {[%clk 0:02:54]}  bxc6 {[%clk 0:02:59]} 8. Nc3 {[%clk 0:02:54]}  Nd7 {[%clk 0:02:55]} 9. dxe5 {[%clk 0:02:54]}  dxe5 {[%clk 0:02:56]} 10. Qe2 {[%clk 0:02:47]}  a5 {[%clk 0:02:54]} 11. Rd1 {[%clk 0:02:46]}  Bd6 {[%clk 0:02:54]} 12. Nd2 {[%clk 0:02:46]}  Ba6 {[%clk 0:02:51]} 13. Qe1 {[%clk 0:02:24]}  Qe7 {[%clk 0:02:48]} 14. b3 {[%clk 0:02:22]}  Rfd8 {[%clk 0:02:28]} 15. Nf1 {[%clk 0:02:22]}  Nf8 {[%clk 0:02:23]} 16. Ne3 {[%clk 0:02:20]}  g6 {[%clk 0:02:24]} 17. Bb2 {[%clk 0:02:12]}  Ne6 {[%clk 0:02:23]} 18. Ne2 {[%clk 0:02:11]}  f6 {[%clk 0:02:18]} 19. Nc1 {[%clk 0:02:11]}  Bc5 {[%clk 0:02:11]} 20. Nd3 {[%clk 0:02:08]}  Bb6 {[%clk 0:02:10]} 21. a4 {[%clk 0:02:03]}  Bxd3 {[%clk 0:01:55]} 22. Rxd3 {[%clk 0:02:02]}  Rxd3 {[%clk 0:01:54]} 23. cxd3 {[%clk 0:02:03]}  Rd8 {[%clk 0:01:52]} 24. Rd1 {[%clk 0:01:51]}  Nf4 {[%clk 0:01:52]} 25. Qf1 {[%clk 0:01:38]}  Qb4 {[%clk 0:01:52]} 26. g3 {[%clk 0:01:33]}  Ne6 {[%clk 0:01:52]} 27. Ng4 {[%clk 0:01:06]}  Rf8 {[%clk 0:01:39]} 28. Rb1 {[%clk 0:00:51]}  Kg7 {[%clk 0:00:43]} 29. Qc1 {[%clk 0:00:42]}  Qd6 {[%clk 0:00:27]} 30. Qc4 {[%clk 0:00:26]}  Rd8 {[%clk 0:00:22]} 31. Rd1 {[%clk 0:00:25]}  h5 {[%clk 0:00:11]} 32. Ne3 {[%clk 0:00:25]}  Kf7 {[%clk 0:00:12]} 33. Qc1 {[%clk 0:00:21]}  Qc5 {[%clk 0:00:12]} 34. Bc3 {[%clk 0:00:19]}  Ba7 {[%clk 0:00:07]} 35. Qd2 {[%clk 0:00:17]}  Rb8 {[%clk 0:00:07]} 36. Rb1 {[%clk 0:00:16]}  Bb6 {[%clk 0:00:05]} 37. Nc4 {[%clk 0:00:16]}  Rd8 {[%clk 0:00:05]} 38. Rd1 {[%clk 0:00:14]}  Qe7 {[%clk 0:00:03]} 39. Bxa5 {[%clk 0:00:13]}  Nc5 {[%clk 0:00:03]} 40. Nxb6 {[%clk 0:00:09]}  cxb6 {[%clk 0:00:03]} 41. Bxb6 {[%clk 0:00:10]}  Rxd3 {[%clk 0:00:04]} 42. Qc2 {[%clk 0:00:10]}  Rxd1+ {[%clk 0:00:04]} 43. Qxd1 {[%clk 0:00:11]}  Nxe4 {[%clk 0:00:04]} 44. a5 {[%clk 0:00:10]}  Nc3 {[%clk 0:00:01]} 45. Qd3 {[%clk 0:00:10]}  Nd5 {[%clk 0:00:02]} 46. Qc4 {[%clk 0:00:09]}  Qb4 {[%clk 0:00:02]} 47. Bc5 {[%clk 0:00:08]}  Qe1+ {[%clk 0:00:02]} 48. Kg2 {[%clk 0:00:08]}  Ke6 {[%clk 0:00:02]} 49. a6 {[%clk 0:00:08]}  Qa1 {[%clk 0:00:02]} 50. a7 {[%clk 0:00:07]}  g5 {[%clk 0:00:03]} 51. Qa4 {[%clk 0:00:07]}  Qxa4 {[%clk 0:00:02]} 52. bxa4 {[%clk 0:00:07]}  Nc7 {[%clk 0:00:03]} 53. Bb6 {[%clk 0:00:07]}  Na8 {[%clk 0:00:03]} 54. Bd8 {[%clk 0:00:07]}  g4 {[%clk 0:00:03]} 55. Kf1 {[%clk 0:00:07]}  f5 {[%clk 0:00:03]} 56. Ke2 {[%clk 0:00:08]}  Kd5 {[%clk 0:00:04]} 57. Kd3 {[%clk 0:00:08]}  c5 {[%clk 0:00:04]} 58. Kc3 {[%clk 0:00:08]}  f4 {[%clk 0:00:03]} 59. gxf4 {[%clk 0:00:08]}  exf4 {[%clk 0:00:04]} 60. Bc7 {[%clk 0:00:09]}  f3 {[%clk 0:00:04]} 61. Bg3 {[%clk 0:00:08]}  c4 {[%clk 0:00:03]} 62. a5 {[%clk 0:00:09]}  Kc5 {[%clk 0:00:03]} 63. Bf4 {[%clk 0:00:09]}  Kb5 {[%clk 0:00:03]} 64. Be3 {[%clk 0:00:09]}  h4 {[%clk 0:00:02]} 65. Bf4 {[%clk 0:00:09]}  h3 {[%clk 0:00:03]} 66. Be3 {[%clk 0:00:09]}  Nc7 {[%clk 0:00:03]} 67. Kd4 {[%clk 0:00:09]}  Na8 {[%clk 0:00:02]} 68. Bd2 {[%clk 0:00:09]}  Nc7 {[%clk 0:00:03]} 69. Ke5 {[%clk 0:00:09]}  Kc5 {[%clk 0:00:03]} 70. Be3+ {[%clk 0:00:09]}  Kb5 {[%clk 0:00:03]} 71. Kd6 {[%clk 0:00:10]}  Na8 {[%clk 0:00:03]} 72. Kd7 {[%clk 0:00:10]}  c3 {[%clk 0:00:03]} 73. Kc8 {[%clk 0:00:10]}  c2 {[%clk 0:00:04]} 74. Kb8 {[%clk 0:00:11]}  g3 {[%clk 0:00:04]} 75. fxg3 {[%clk 0:00:11]}  f2 {[%clk 0:00:05]} 76. Kxa8 {[%clk 0:00:09]}  f1=Q {[%clk 0:00:06]} 77. Kb8 {[%clk 0:00:09]}  Qf8+ {[%clk 0:00:06]} 78. Kb7 {[%clk 0:00:09]}  Qf7+ {[%clk 0:00:06]} 79. Kb8 {[%clk 0:00:10]}  Qe8+ {[%clk 0:00:06]} 80. Kb7 {[%clk 0:00:10]}  Qxe3 {[%clk 0:00:06]} 0-1


[Site "https://www.chess.com"]

[Event "Titled Tuesday Blitz April 19 Early 2022"]
[White "Vusatiuk, Vladimir"]
[Black "Barbashin, Igor"]
[WhiteFideId "14118610"]
[BlackFideId "4155718"]
[WhiteElo "2157"]
[BlackElo "2138"]
[Result "0-1"]
[Round "09"]
[TimeControl "180+1"]
[Date "2022.04.19"]
[WhiteClock "0:00:08"]
[BlackClock "0:00:11"]

1. d4 {[%clk 0:02:57]}  Nf6 {[%clk 0:02:58]} 2. c4 {[%clk 0:02:56]}  c5 {[%clk 0:02:56]} 3. d5 {[%clk 0:02:55]}  e6 {[%clk 0:02:56]} 4. Nc3 {[%clk 0:02:53]}  exd5 {[%clk 0:02:56]} 5. cxd5 {[%clk 0:02:54]}  d6 {[%clk 0:02:56]} 6. Nf3 {[%clk 0:02:52]}  g6 {[%clk 0:02:55]} 7. e4 {[%clk 0:02:49]}  Bg7 {[%clk 0:02:55]} 8. Be2 {[%clk 0:02:47]}  O-O {[%clk 0:02:53]} 9. Be3 {[%clk 0:02:44]}  Re8 {[%clk 0:02:52]} 10. Nd2 {[%clk 0:02:42]}  a6 {[%clk 0:02:48]} 11. a4 {[%clk 0:02:40]}  Nbd7 {[%clk 0:02:43]} 12. O-O {[%clk 0:02:29]}  Qc7 {[%clk 0:02:39]} 13. h3 {[%clk 0:02:22]}  Rb8 {[%clk 0:02:38]} 14. Qc2 {[%clk 0:02:18]}  b6 {[%clk 0:02:18]} 15. Bf4 {[%clk 0:02:04]}  Ne5 {[%clk 0:02:03]} 16. g4 {[%clk 0:01:59]}  h5 {[%clk 0:01:58]} 17. g5 {[%clk 0:01:44]}  Nfd7 {[%clk 0:01:42]} 18. Kh2 {[%clk 0:01:42]}  c4 {[%clk 0:01:35]} 19. Bg3 {[%clk 0:01:35]}  Nc5 {[%clk 0:01:25]} 20. Nxc4 {[%clk 0:01:29]}  Nxc4 {[%clk 0:01:24]} 21. Bxc4 {[%clk 0:01:30]}  Bxc3 {[%clk 0:01:14]} 22. bxc3 {[%clk 0:01:22]}  Nxe4 {[%clk 0:01:13]} 23. Bd3 {[%clk 0:01:19]}  Bf5 {[%clk 0:00:55]} 24. c4 {[%clk 0:01:06]}  Nxg3 {[%clk 0:00:54]} 25. fxg3 {[%clk 0:01:07]}  Bxd3 {[%clk 0:00:50]} 26. Qxd3 {[%clk 0:01:08]}  Rbc8 {[%clk 0:00:47]} 27. Rf4 {[%clk 0:01:02]}  Qe7 {[%clk 0:00:42]} 28. Ra2 {[%clk 0:00:57]}  Qxg5 {[%clk 0:00:38]} 29. Qd4 {[%clk 0:00:50]}  Qe5 {[%clk 0:00:20]} 30. Qxb6 {[%clk 0:00:47]}  g5 {[%clk 0:00:20]} 31. Rf1 {[%clk 0:00:30]}  Rxc4 {[%clk 0:00:18]} 32. Raf2 {[%clk 0:00:30]}  Re7 {[%clk 0:00:16]} 33. Qxa6 {[%clk 0:00:27]}  Rc3 {[%clk 0:00:15]} 34. Rg2 {[%clk 0:00:19]}  h4 {[%clk 0:00:14]} 35. Qa8+ {[%clk 0:00:11]}  Kg7 {[%clk 0:00:12]} 36. Kh1 {[%clk 0:00:10]}  Rxg3 {[%clk 0:00:12]} 37. Qa7 {[%clk 0:00:08]}  Rxg2 {[%clk 0:00:10]} 38. Kxg2 {[%clk 0:00:08]}  Qg3+ {[%clk 0:00:10]} 39. Kh1 {[%clk 0:00:08]}  Rxa7 {[%clk 0:00:11]} 0-1


[Site "https://www.chess.com"]

[Event "Titled Tuesday Blitz April 19 Early 2022"]
[White "Winkels, Marcel"]
[Black "Friedel, Tom"]
[WhiteFideId "1003887"]
[BlackFideId "2002108"]
[WhiteElo "1900"]
[BlackElo "2296"]
[Result "0-1"]
[Round "09"]
[TimeControl "180+1"]
[Date "2022.04.19"]
[WhiteClock "0:00:08"]
[BlackClock "0:00:21"]

1. d4 {[%clk 0:03:00]}  d5 {[%clk 0:02:59]} 2. Nc3 {[%clk 0:03:01]}  e6 {[%clk 0:03:00]} 3. e4 {[%clk 0:02:59]}  dxe4 {[%clk 0:02:59]} 4. Nxe4 {[%clk 0:02:58]}  Nd7 {[%clk 0:02:59]} 5. Nf3 {[%clk 0:02:57]}  Ngf6 {[%clk 0:02:59]} 6. Bd3 {[%clk 0:02:57]}  Be7 {[%clk 0:02:59]} 7. Bg5 {[%clk 0:02:46]}  Nxe4 {[%clk 0:02:46]} 8. Bxe7 {[%clk 0:02:45]}  Nxf2 {[%clk 0:02:40]} 9. Bxd8 {[%clk 0:02:44]}  Nxd1 {[%clk 0:02:40]} 10. Bxc7 {[%clk 0:02:39]}  Nxb2 {[%clk 0:02:39]} 11. Bb5 {[%clk 0:02:28]}  a6 {[%clk 0:02:36]} 12. Be2 {[%clk 0:02:05]}  Na4 {[%clk 0:02:29]} 13. O-O {[%clk 0:02:02]}  Nc3 {[%clk 0:02:27]} 14. Bd3 {[%clk 0:02:01]}  O-O {[%clk 0:02:14]} 15. a4 {[%clk 0:01:54]}  Nf6 {[%clk 0:02:05]} 16. Be5 {[%clk 0:01:44]}  Bd7 {[%clk 0:02:03]} 17. a5 {[%clk 0:01:37]}  Bb5 {[%clk 0:01:59]} 18. Bxb5 {[%clk 0:01:30]}  axb5 {[%clk 0:01:52]} 19. Bc7 {[%clk 0:01:26]}  Nfd5 {[%clk 0:01:46]} 20. Bb6 {[%clk 0:01:07]}  Rfc8 {[%clk 0:01:39]} 21. Ne5 {[%clk 0:01:05]}  f6 {[%clk 0:01:23]} 22. Nd3 {[%clk 0:01:03]}  Ne2+ {[%clk 0:01:20]} 23. Kh1 {[%clk 0:01:01]}  Rxc2 {[%clk 0:01:20]} 24. Rab1 {[%clk 0:00:52]}  Nxb6 {[%clk 0:01:11]} 25. axb6 {[%clk 0:00:50]}  Nxd4 {[%clk 0:01:07]} 26. Ra1 {[%clk 0:00:30]}  Rxa1 {[%clk 0:00:57]} 27. Rxa1 {[%clk 0:00:28]}  Rd2 {[%clk 0:00:54]} 28. Nb4 {[%clk 0:00:22]}  e5 {[%clk 0:00:48]} 29. h3 {[%clk 0:00:21]}  e4 {[%clk 0:00:48]} 30. Ra7 {[%clk 0:00:19]}  e3 {[%clk 0:00:23]} 31. Rxb7 {[%clk 0:00:13]}  e2 {[%clk 0:00:23]} 32. Re7 {[%clk 0:00:12]}  Rd1+ {[%clk 0:00:23]} 33. Kh2 {[%clk 0:00:10]}  e1=Q {[%clk 0:00:24]} 34. Rxe1 {[%clk 0:00:09]}  Rxe1 {[%clk 0:00:24]} 35. b7 {[%clk 0:00:09]}  Re8 {[%clk 0:00:25]} 36. Na6 {[%clk 0:00:08]}  b4 {[%clk 0:00:21]} 37. b8=Q {[%clk 0:00:07]}  Rxb8 {[%clk 0:00:21]} 38. Nxb8 {[%clk 0:00:08]}  b3 {[%clk 0:00:20]} 39. Na6 {[%clk 0:00:08]}  b2 {[%clk 0:00:21]} 0-1


[Site "https://www.chess.com"]

[Event "Titled Tuesday Blitz April 19 Early 2022"]
[White "Yeletsky, Ivan"]
[Black "Seemann, Jakub"]
[WhiteFideId "24180327"]
[BlackFideId "21874697"]
[WhiteElo "2319"]
[BlackElo "2003"]
[Result "1-0"]
[Round "09"]
[TimeControl "180+1"]
[Date "2022.04.19"]
[WhiteClock "0:01:10"]
[BlackClock "0:00:01"]

1. e4 {[%clk 0:02:59]}  e5 {[%clk 0:02:56]} 2. Bc4 {[%clk 0:02:58]}  Nc6 {[%clk 0:02:54]} 3. Nc3 {[%clk 0:02:57]}  Bc5 {[%clk 0:02:46]} 4. Qg4 {[%clk 0:02:55]}  g6 {[%clk 0:02:26]} 5. Qd1 {[%clk 0:02:54]}  Nf6 {[%clk 0:02:24]} 6. d3 {[%clk 0:02:52]}  O-O {[%clk 0:02:21]} 7. Bh6 {[%clk 0:02:49]}  Re8 {[%clk 0:02:21]} 8. a3 {[%clk 0:02:38]}  Nd4 {[%clk 0:02:15]} 9. Nf3 {[%clk 0:02:28]}  c6 {[%clk 0:02:05]} 10. Bg5 {[%clk 0:02:14]}  Kg7 {[%clk 0:01:46]} 11. Qd2 {[%clk 0:02:14]}  d5 {[%clk 0:01:41]} 12. exd5 {[%clk 0:02:13]}  Nxf3+ {[%clk 0:01:41]} 13. gxf3 {[%clk 0:02:12]}  Bf5 {[%clk 0:01:32]} 14. O-O-O {[%clk 0:02:11]}  b5 {[%clk 0:01:30]} 15. Bb3 {[%clk 0:02:07]}  b4 {[%clk 0:01:30]} 16. Ne4 {[%clk 0:02:06]}  Bxe4 {[%clk 0:01:29]} 17. fxe4 {[%clk 0:02:04]}  bxa3 {[%clk 0:01:27]} 18. f4 {[%clk 0:02:04]}  axb2+ {[%clk 0:01:22]} 19. Kb1 {[%clk 0:02:03]}  h6 {[%clk 0:00:54]} 20. Bxh6+ {[%clk 0:01:49]}  Kxh6 {[%clk 0:00:37]} 21. fxe5+ {[%clk 0:01:50]}  Kh7 {[%clk 0:00:22]} 22. exf6 {[%clk 0:01:49]}  Rb8 {[%clk 0:00:20]} 23. Rhf1 {[%clk 0:01:32]}  Bd4 {[%clk 0:00:18]} 24. Rf3 {[%clk 0:01:20]}  Kg8 {[%clk 0:00:12]} 25. dxc6 {[%clk 0:01:10]}  Qd6 {[%clk 0:00:09]} 26. Qh6 {[%clk 0:01:08]}  Bxf6 {[%clk 0:00:07]} 27. Qxg6+ {[%clk 0:01:08]}  Bg7 {[%clk 0:00:02]} 28. Qxd6 {[%clk 0:01:08]}  Re5 {[%clk 0:00:03]} 29. Qxb8+ {[%clk 0:01:08]}  Kh7 {[%clk 0:00:03]} 30. Qb7 {[%clk 0:01:08]}  Ra5 {[%clk 0:00:03]} 31. Rh3+ {[%clk 0:01:09]}  Bh6 {[%clk 0:00:01]} 32. d4 {[%clk 0:01:10]} 1-0


[Site "https://www.chess.com"]

[Event "Titled Tuesday Blitz April 19 Early 2022"]
[White "Zemerov, Vladimir"]
[Black "Clarke, Brandon G I"]
[WhiteFideId "4111583"]
[BlackFideId "400319"]
[WhiteElo "2277"]
[BlackElo "2414"]
[Result "0-1"]
[Round "09"]
[TimeControl "180+1"]
[Date "2022.04.19"]
[WhiteClock "0:00:20"]
[BlackClock "0:01:43"]

1. d4 {[%clk 0:02:14]}  Nf6 {[%clk 0:02:59]} 2. c4 {[%clk 0:02:14]}  g6 {[%clk 0:03:00]} 3. Nc3 {[%clk 0:02:14]}  d5 {[%clk 0:03:00]} 4. Nf3 {[%clk 0:02:12]}  Bg7 {[%clk 0:03:00]} 5. e3 {[%clk 0:02:13]}  O-O {[%clk 0:03:00]} 6. Qb3 {[%clk 0:02:13]}  e6 {[%clk 0:02:59]} 7. Bd2 {[%clk 0:02:10]}  b6 {[%clk 0:02:53]} 8. cxd5 {[%clk 0:02:09]}  exd5 {[%clk 0:02:54]} 9. a4 {[%clk 0:02:08]}  Nc6 {[%clk 0:02:48]} 10. Be2 {[%clk 0:02:05]}  Na5 {[%clk 0:02:47]} 11. Qa2 {[%clk 0:01:58]}  Be6 {[%clk 0:02:41]} 12. O-O {[%clk 0:01:57]}  Ne4 {[%clk 0:02:37]} 13. Be1 {[%clk 0:01:46]}  c5 {[%clk 0:02:35]} 14. Nb5 {[%clk 0:01:37]}  a6 {[%clk 0:02:30]} 15. Bxa5 {[%clk 0:01:27]}  axb5 {[%clk 0:02:30]} 16. Be1 {[%clk 0:01:19]}  Rxa4 {[%clk 0:02:28]} 17. Qb1 {[%clk 0:01:19]}  Rxa1 {[%clk 0:02:19]} 18. Qxa1 {[%clk 0:01:18]}  Qd7 {[%clk 0:02:19]} 19. Qa6 {[%clk 0:01:16]}  b4 {[%clk 0:02:17]} 20. Qxb6 {[%clk 0:01:15]}  Qd8 {[%clk 0:01:59]} 21. Qb5 {[%clk 0:01:02]}  Qa8 {[%clk 0:01:49]} 22. dxc5 {[%clk 0:00:59]}  Rb8 {[%clk 0:01:48]} 23. Qa6 {[%clk 0:00:46]}  Qxa6 {[%clk 0:01:48]} 24. Bxa6 {[%clk 0:00:46]}  Nxc5 {[%clk 0:01:49]} 25. Be2 {[%clk 0:00:40]}  Bxb2 {[%clk 0:01:49]} 26. Nd4 {[%clk 0:00:40]}  b3 {[%clk 0:01:47]} 27. Nxb3 {[%clk 0:00:31]}  Rxb3 {[%clk 0:01:45]} 28. Ba5 {[%clk 0:00:30]}  Bc3 {[%clk 0:01:44]} 29. Bxc3 {[%clk 0:00:27]}  Rxc3 {[%clk 0:01:45]} 30. Rb1 {[%clk 0:00:26]}  Kg7 {[%clk 0:01:45]} 31. h4 {[%clk 0:00:24]}  h5 {[%clk 0:01:45]} 32. Rb5 {[%clk 0:00:21]}  Ne4 {[%clk 0:01:44]} 33. Bf3 {[%clk 0:00:20]}  Rc1+ {[%clk 0:01:43]} 34. Kh2 {[%clk 0:00:20]}  Nxf2 {[%clk 0:01:44]} 35. Kg3 {[%clk 0:00:20]}  Ne4+ {[%clk 0:01:43]} 0-1


[Site "https://www.chess.com"]

[Event "Titled Tuesday Blitz April 19 Early 2022"]
[White "Zhu, Jiner"]
[Black "Omariev, Maksim"]
[WhiteFideId "8608059"]
[BlackFideId "4193423"]
[WhiteElo "2281"]
[BlackElo "2485"]
[Result "1-0"]
[Round "09"]
[TimeControl "180+1"]
[Date "2022.04.19"]
[WhiteClock "0:00:09"]
[BlackClock "0:00:08"]

1. e4 {[%clk 0:03:00]}  c5 {[%clk 0:02:56]} 2. Nf3 {[%clk 0:03:00]}  d6 {[%clk 0:02:56]} 3. d4 {[%clk 0:03:00]}  cxd4 {[%clk 0:02:57]} 4. Nxd4 {[%clk 0:03:01]}  Nf6 {[%clk 0:02:58]} 5. Nc3 {[%clk 0:03:02]}  a6 {[%clk 0:02:58]} 6. Be3 {[%clk 0:03:02]}  Ng4 {[%clk 0:02:58]} 7. Bc1 {[%clk 0:03:02]}  Nf6 {[%clk 0:02:58]} 8. f3 {[%clk 0:03:00]}  e6 {[%clk 0:02:58]} 9. Be3 {[%clk 0:02:59]}  b5 {[%clk 0:02:58]} 10. a3 {[%clk 0:02:59]}  Nbd7 {[%clk 0:02:58]} 11. Qd2 {[%clk 0:02:59]}  Bb7 {[%clk 0:02:58]} 12. O-O-O {[%clk 0:02:59]}  Rc8 {[%clk 0:02:50]} 13. g4 {[%clk 0:02:58]}  Nb6 {[%clk 0:02:51]} 14. Nb3 {[%clk 0:02:56]}  Nc4 {[%clk 0:02:33]} 15. Bxc4 {[%clk 0:02:53]}  bxc4 {[%clk 0:02:34]} 16. Nd4 {[%clk 0:02:53]}  Be7 {[%clk 0:02:32]} 17. g5 {[%clk 0:02:50]}  Nd7 {[%clk 0:02:31]} 18. h4 {[%clk 0:02:51]}  g6 {[%clk 0:02:02]} 19. h5 {[%clk 0:02:47]}  Rg8 {[%clk 0:02:00]} 20. hxg6 {[%clk 0:02:44]}  hxg6 {[%clk 0:02:01]} 21. Rh7 {[%clk 0:02:36]}  Qa5 {[%clk 0:01:36]} 22. Rdh1 {[%clk 0:02:28]}  Nf8 {[%clk 0:01:34]} 23. R7h3 {[%clk 0:02:14]}  d5 {[%clk 0:01:33]} 24. exd5 {[%clk 0:02:09]}  Bxd5 {[%clk 0:01:29]} 25. Nxd5 {[%clk 0:01:32]}  Qxd5 {[%clk 0:01:29]} 26. Ne2 {[%clk 0:01:31]}  Qb5 {[%clk 0:01:12]} 27. Nc3 {[%clk 0:01:26]}  Qa5 {[%clk 0:00:59]} 28. Ne4 {[%clk 0:00:20]}  c3 {[%clk 0:00:58]} 29. Nxc3 {[%clk 0:00:16]}  Bxa3 {[%clk 0:00:57]} 30. bxa3 {[%clk 0:00:13]}  Qxa3+ {[%clk 0:00:56]} 31. Kd1 {[%clk 0:00:13]}  Rd8 {[%clk 0:00:42]} 32. Bd4 {[%clk 0:00:12]}  e5 {[%clk 0:00:42]} 33. Re1 {[%clk 0:00:05]}  Ne6 {[%clk 0:00:15]} 34. Rxe5 {[%clk 0:00:05]}  Kf8 {[%clk 0:00:09]} 35. Rxe6 {[%clk 0:00:05]}  fxe6 {[%clk 0:00:09]} 36. Rh4 {[%clk 0:00:05]}  Qd6 {[%clk 0:00:06]} 37. Rf4+ {[%clk 0:00:04]}  Ke7 {[%clk 0:00:05]} 38. Re4 {[%clk 0:00:03]}  Kf7 {[%clk 0:00:03]} 39. Ke2 {[%clk 0:00:03]}  Rge8 {[%clk 0:00:02]} 40. Qf4+ {[%clk 0:00:04]}  Qxf4 {[%clk 0:00:02]} 41. Rxf4+ {[%clk 0:00:02]}  Kg8 {[%clk 0:00:02]} 42. Bf6 {[%clk 0:00:02]}  e5 {[%clk 0:00:03]} 43. Rh4 {[%clk 0:00:02]}  Rc8 {[%clk 0:00:03]} 44. Kd2 {[%clk 0:00:02]}  Kf7 {[%clk 0:00:03]} 45. Rh7+ {[%clk 0:00:02]}  Ke6 {[%clk 0:00:04]} 46. Ne4 {[%clk 0:00:02]}  Rb8 {[%clk 0:00:03]} 47. c3 {[%clk 0:00:03]}  Rec8 {[%clk 0:00:03]} 48. Ra7 {[%clk 0:00:03]}  Rb2+ {[%clk 0:00:03]} 49. Kd3 {[%clk 0:00:03]}  Rh2 {[%clk 0:00:02]} 50. Re7+ {[%clk 0:00:04]}  Kd5 {[%clk 0:00:02]} 51. Rd7+ {[%clk 0:00:04]}  Kc6 {[%clk 0:00:02]} 52. Rd6+ {[%clk 0:00:05]}  Kb5 {[%clk 0:00:02]} 53. Bxe5 {[%clk 0:00:04]}  Rc6 {[%clk 0:00:02]} 54. Rxc6 {[%clk 0:00:04]}  Kxc6 {[%clk 0:00:03]} 55. Bxh2 {[%clk 0:00:05]}  a5 {[%clk 0:00:03]} 56. c4 {[%clk 0:00:06]}  a4 {[%clk 0:00:03]} 57. Be5 {[%clk 0:00:06]}  a3 {[%clk 0:00:04]} 58. Ba1 {[%clk 0:00:07]}  a2 {[%clk 0:00:04]} 59. c5 {[%clk 0:00:08]}  Kd5 {[%clk 0:00:04]} 60. Kc3 {[%clk 0:00:06]}  Ke6 {[%clk 0:00:04]} 61. Kc4 {[%clk 0:00:07]}  Kf5 {[%clk 0:00:04]} 62. c6 {[%clk 0:00:07]}  Ke6 {[%clk 0:00:05]} 63. Kc5 {[%clk 0:00:08]}  Ke7 {[%clk 0:00:05]} 64. c7 {[%clk 0:00:08]}  Kd7 {[%clk 0:00:06]} 65. Kb6 {[%clk 0:00:09]}  Kc8 {[%clk 0:00:07]} 66. Nd6+ {[%clk 0:00:09]}  Kd7 {[%clk 0:00:07]} 67. c8=Q+ {[%clk 0:00:09]}  Ke7 {[%clk 0:00:08]} 68. Qc7+ {[%clk 0:00:09]}  Ke6 {[%clk 0:00:08]} 69. Ne4 {[%clk 0:00:08]}  Kf5 {[%clk 0:00:08]} 70. Qe5# {[%clk 0:00:09]} 1-0


[Site "https://www.chess.com"]